bitfinex-derivatives/quotes_SOLF0:USTF0_20250227
["timestamp","ask_amount","ask_price","bid_price","bid_amount"]
[1740686061024,0.0471221,136.29,136.26,0.05610024]
[1740686061723,0.0471221,136.29,136.28,7.3464]
[1740686061923,0.0471221,136.29,136.26,0.05610024]
[1740686063224,0.0471221,136.29,136.28,7.3464]
[1740686063527,0.0471221,136.29,136.26,0.05610024]
[1740686063826,0.0471221,136.29,136.27,7.3467]
[1740686064821,0.0471221,136.29,136.28,7.3464]
[1740686066622,2.21e-05,136.29,136.28,7.3464]
[1740686068328,2.21e-05,136.29,136.28,29.3664]
[1740686068631,2.21e-05,136.29,136.28,31.3912]
[1740686071127,11.3315,136.43,136.39,7.3401]
[1740686071422,11.3315,136.43,136.29,16.6349]
[1740686071623,11.3315,136.43,136.37,7.3411]
[1740686072025,3.993,136.43,136.29,16.6349]
[1740686072225,0.05119486,136.41,136.39,0.0532102]
[1740686072427,3.993,136.43,136.29,16.6349]
[1740686072727,7.34,136.4,136.39,0.04995328]
[1740686072926,0.05284324,136.37,136.36,7.3421]
[1740686073127,7.34,136.4,136.36,7.3421]
[1740686073332,0.04852266,136.38,136.36,7.3421]
[1740686074024,0.04852266,136.38,136.37,7.3416]
[1740686075532,0.04852266,136.38,136.35,0.05564388]
[1740686076732,0.04852266,136.38,136.36,7.3418]
[1740686077834,0.04852266,136.38,136.35,0.05564388]
[1740686078631,7.38982266,136.38,136.35,7.39814388]
[1740686079532,0.04852266,136.38,136.35,0.05564388]
[1740686080034,7.38982266,136.38,136.35,0.05564388]
[1740686081133,0.04852266,136.38,136.35,0.05564388]
[1740686081734,7.3421,136.36,136.35,0.05564388]
[1740686082335,3.8843,136.37,136.28,2.0248]
[1740686082535,3.8843,136.37,136.27,40.71880676]
[1740686082741,3.8843,136.37,136.29,7.3457]
[1740686083641,0.05224907,136.34,136.32,0.05464658]
[1740686083940,7.345,136.31,136.27,40.71880676]
[1740686084241,3.8843,136.37,136.27,40.71880676]
[1740686084541,7.3444,136.32,136.28,7.3461]
[1740686084841,7.3444,136.32,136.27,40.71880676]
[1740686085041,0.05213894,136.31,136.29,0.05598075]
[1740686085640,7.39693894,136.31,136.29,0.05598075]
[1740686085937,0.05213894,136.31,136.29,0.05598075]
[1740686089042,0.05213894,136.31,136.3,7.3454]
[1740686089342,0.05213894,136.31,136.29,0.05598075]
[1740686089737,0.05213894,136.31,136.29,7.40158075]
[1740686090744,0.05213894,136.31,136.29,0.05598075]
[1740686091044,0.05213894,136.31,136.3,7.3454]
[1740686095450,0.05213894,136.31,136.29,0.05598075]
[1740686096245,0.05213894,136.31,136.3,7.3454]
[1740686098151,3.894e-05,136.31,136.3,7.3454]
[1740686100348,3.894e-05,136.31,136.3,11.247]
[1740686102456,3.894e-05,136.31,136.3,33.247]
[1740686102654,3.894e-05,136.31,136.3,35.2348]
[1740686104358,3.894e-05,136.31,136.3,11.247]
[1740686105652,3.894e-05,136.31,136.3,7.3454]
[1740686105852,3.894e-05,136.31,136.3,12.92884709]
[1740686107956,3.894e-05,136.31,136.3,34.92884709]
[1740686108157,3.894e-05,136.31,136.3,12.92884709]
[1740686108556,3.894e-05,136.31,136.3,7.3454]
[1740686109559,3.894e-05,136.31,136.3,29.3454]
[1740686109958,3.894e-05,136.31,136.3,7.3454]
[1740686115263,3.894e-05,136.31,136.29,0.05598075]
[1740686115462,3.894e-05,136.31,136.28,10.13711473]
[1740686115863,3.894e-05,136.31,136.3,7.3454]
[1740686117663,3.894e-05,136.31,136.29,0.05425625]
[1740686117865,3.894e-05,136.31,136.29,7.39985625]
[1740686118067,3.894e-05,136.31,136.29,0.05425625]
[1740686118864,3.894e-05,136.31,136.3,7.3454]
[1740686128668,3.894e-05,136.31,136.3,41.2454]
[1740686130759,3.894e-05,136.31,136.3,128.37494281]
[1740686131164,3.9607,136.44,136.43,7.3384]
[1740686132272,1.8877,136.48,136.47,7.3362]
[1740686134468,1.8877,136.48,136.46,0.05602591]
[1740686134670,1.8877,136.48,136.37,11.9]
[1740686134862,11.9,136.47,136.36,40.68580765]
[1740686135866,0.05524029,136.43,136.4,0.04753815]
[1740686136672,0.05524029,136.43,136.4,7.38743815]
[1740686137072,0.05524029,136.43,136.4,0.04753815]
[1740686137273,0.05524029,136.43,136.42,7.3389]
[1740686137470,0.05524029,136.43,136.4,0.04753815]
[1740686137663,0.05524029,136.43,136.4,7.38733815]
[1740686137864,0.05524029,136.43,136.4,0.04753815]
[1740686138270,0.05524029,136.43,136.42,7.3389]
[1740686138573,4.029e-05,136.43,136.42,7.3389]
[1740686139575,4.029e-05,136.43,136.4,0.04753815]
[1740686140166,4.029e-05,136.43,136.4,7.38753815]
[1740686140371,4.029e-05,136.43,136.34,11.88]
[1740686140677,11.88,136.48,136.34,11.88]
[1740686141275,7.3376,136.45,136.38,7.3409]
[1740686141478,1.8629,136.44,136.34,11.88]
[1740686141778,2.09478357,136.43,136.4,0.05339314]
[1740686141975,2.0402,136.43,136.32,40.68580765]
[1740686142479,0.05420048,136.39,136.36,0.04647435]
[1740686143377,0.05420048,136.39,136.38,7.3411]
[1740686143577,0.05420048,136.39,136.36,0.04647435]
[1740686144578,0.05420048,136.39,136.31,53.43293534]
[1740686145082,0.05420048,136.39,136.34,7.3429]
[1740686145577,0.05420048,136.39,136.31,53.43293534]
[1740686145782,7.39510048,136.39,136.35,0.04905258]
[1740686145973,1.987,136.38,136.35,0.04905258]
[1740686146175,0.05420048,136.39,136.35,0.04905258]
[1740686146875,0.05420048,136.39,136.37,7.3411]
[1740686147275,0.05420048,136.39,136.37,7.3412]
[1740686147480,0.05420048,136.39,136.35,0.04905258]
[1740686148586,0.05420048,136.39,136.38,7.3411]
[1740686149286,0.05420048,136.39,136.37,7.3415]
[1740686149480,0.05420048,136.39,136.35,0.04905258]
[1740686149683,7.3411,136.38,136.35,0.04905258]
[1740686150077,0.05420048,136.39,136.35,0.04905258]
[1740686150481,0.05420048,136.39,136.37,7.3412]
[1740686150680,0.05420048,136.39,136.35,0.04905258]
[1740686151081,0.05420048,136.39,136.38,7.3411]
[1740686152682,4.8e-07,136.39,136.38,7.3411]
[1740686154690,4.8e-07,136.39,136.37,4.2625]
[1740686155389,4.8e-07,136.39,136.36,7.3418]
[1740686155583,4.8e-07,136.39,136.35,0.04905258]
[1740686155887,7.34070048,136.39,136.35,0.04905258]
[1740686156082,7.34070048,136.39,136.37,7.3416]
[1740686156291,4.8e-07,136.39,136.37,7.3416]
[1740686156587,4.8e-07,136.39,136.36,7.3418]
[1740686156989,7.34080048,136.39,136.36,7.3418]
[1740686157185,7.34080048,136.39,136.35,0.04905258]
[1740686157378,4.8e-07,136.39,136.37,7.3415]
[1740686157582,4.8e-07,136.39,136.35,0.04905258]
[1740686157781,7.34060048,136.39,136.37,7.3416]
[1740686158690,7.34060048,136.39,136.35,0.04905258]
[1740686158886,7.3411,136.38,136.35,0.04905258]
[1740686159086,4.8e-07,136.39,136.35,0.04905258]
[1740686159792,4.8e-07,136.39,136.37,7.3412]
[1740686159991,4.8e-07,136.39,136.35,0.04905258]
[1740686160287,4.8e-07,136.39,136.38,7.3411]
[1740686166793,4.8e-07,136.39,136.38,29.3411]
[1740686167394,4.8e-07,136.39,136.38,7.3411]
[1740686182594,4.8e-07,136.39,136.38,29.3411]
[1740686182900,211.42,136.58,136.41,14.6788]
[1740686183098,1.9662,136.53,136.42,1.8593]
[1740686183299,7.3345,136.51,136.4,11.88]
[1740686183696,1.9662,136.53,136.45,7.3368]
[1740686183895,1.9662,136.53,136.44,0.05417763]
[1740686183896,0.0505255,136.47,136.44,0.05417763]
[1740686184095,1.9662,136.53,136.4,11.88]
[1740686184294,0.05504895,136.47,136.44,0.05079652]
[1740686184502,9.2996,136.53,136.41,2.0107]
[1740686184706,0.04672308,136.47,136.44,0.0478702]
[1740686184897,1.9662,136.53,136.41,4.0162]
[1740686185099,0.05106354,136.47,136.44,0.05096937]
[1740686185405,1.9662,136.53,136.45,7.337]
[1740686185605,7.3352,136.49,136.45,7.337]
[1740686185805,7.3352,136.49,136.48,0.04807795]
[1740686186007,21.98,136.49,136.36,53.41582896]
[1740686186206,19.53353811,136.51,136.36,53.41582896]
[1740686186411,19.53353811,136.51,136.4,7.3397]
[1740686186702,7.338,136.44,136.4,7.3397]
[1740686186906,191.0,136.5,136.33,3.9564]
[1740686187207,0.05594757,136.43,136.42,7.3387]
[1740686187504,19.53353811,136.51,136.42,7.3387]
[1740686187706,0.04940692,136.44,136.42,7.3387]
[1740686188005,0.05007323,136.44,136.42,7.39232374]
[1740686188303,9.43867323,136.44,136.42,0.05362374]
[1740686188501,4.15077323,136.44,136.39,40.70556545]
[1740686188705,4.15077323,136.44,136.4,7.3396]
[1740686188910,7.3387,136.43,136.4,7.3396]
[1740686189211,2.10027323,136.44,136.39,40.70556545]
[1740686189410,0.05007323,136.44,136.43,7.3384]
[1740686189612,2.0505,136.49,136.4,0.05372955]
[1740686189613,2.0502,136.48,136.4,0.05372955]
[1740686189912,2.0502,136.48,136.34,233.70556545]
[1740686190107,2.0502,136.48,136.37,14.6831]
[1740686190414,2.0502,136.48,136.47,7.3362]
[1740686191909,2.0502,136.48,136.46,7.38356694]
[1740686192310,2.0502,136.48,136.46,0.04726694]
[1740686192514,2.0502,136.48,136.47,7.3362]
[1740686193715,4.0619,136.48,136.47,7.3362]
[1740686193915,4.0619,136.48,136.46,0.04726694]
[1740686194112,26.0419,136.48,136.38,42.71496545]
[1740686194412,4.0619,136.48,136.38,40.70556545]
[1740686195012,7.3365,136.47,136.44,7.3378]
[1740686195213,4.0619,136.48,136.42,0.05588746]
[1740686195415,0.04781303,136.47,136.42,0.05588746]
[1740686196116,7.38431303,136.47,136.43,7.3379]
[1740686196313,0.04781303,136.47,136.43,7.3379]
[1740686196617,0.04781303,136.47,136.42,7.39458746]
[1740686196915,0.04781303,136.47,136.42,0.05588746]
[1740686197110,7.337,136.46,136.43,7.3381]
[1740686197512,0.04781303,136.47,136.43,7.3381]
[1740686197712,0.04781303,136.47,136.42,0.05588746]
[1740686197907,7.337,136.46,136.42,0.05588746]
[1740686198314,7.38421303,136.47,136.45,7.3373]
[1740686198515,0.04781303,136.47,136.45,7.3373]
[1740686198716,0.04781303,136.47,136.42,0.05588746]
[1740686198918,0.04781303,136.47,136.46,7.3368]
[1740686199117,0.04781303,136.47,136.37,40.70556545]
[1740686199321,11.3979,136.48,136.45,7.38990774]
[1740686199515,11.3979,136.48,136.45,7.3371]
[1740686199710,4.11321641,136.48,136.45,0.05233773]
[1740686199911,4.11321641,136.48,136.47,7.3362]
[1740686200919,4.11321641,136.48,136.46,7.3367]
[1740686203222,4.11321641,136.48,136.45,0.05233773]
[1740686203415,4.11321641,136.48,136.47,7.3362]
[1740686205324,4.11321641,136.48,136.45,0.05233773]
[1740686205725,26.09321641,136.48,136.4,5.6007293]
[1740686205925,4.11321641,136.48,136.4,5.6007293]
[1740686206316,7.3383,136.44,136.4,12.9404293]
[1740686206624,4.0619,136.48,136.4,5.6007293]
[1740686206818,0.05060344,136.43,136.4,5.6007293]
[1740686207127,7.38930344,136.43,136.4,5.6007293]
[1740686207522,0.05060344,136.43,136.41,7.3393]
[1740686208625,7.38900344,136.43,136.4,7.3397]
[1740686209128,7.38900344,136.43,136.41,7.3394]
[1740686209432,7.38900344,136.43,136.37,10.17639136]
[1740686209926,7.38900344,136.43,136.4,7.3398]
[1740686210627,7.339,136.42,136.39,7.3402]
[1740686210825,3.9393,136.42,136.37,10.17639136]
[1740686211025,3.9393,136.42,136.32,26.27028287]
[1740686211026,3.9393,136.42,136.33,40.70556545]
[1740686211425,0.04941032,136.39,136.33,40.70556545]
[1740686212323,1.032e-05,136.39,136.38,7.3411]
[1740686220331,1.032e-05,136.39,136.37,0.04826339]
[1740686220934,1.032e-05,136.39,136.38,7.3411]
[1740686227344,1.032e-05,136.39,136.38,11.2412]
[1740686227744,1.032e-05,136.39,136.38,13.2859]
[1740686234039,1.032e-05,136.39,136.38,9.3843]
[1740686234443,1.032e-05,136.39,136.38,7.3411]
[1740686235347,1.032e-05,136.39,136.37,0.04826339]
[1740686235842,1.032e-05,136.39,136.37,7.38936339]
[1740686236046,1.032e-05,136.39,136.37,0.04826339]
[1740686237558,7.34081032,136.39,136.37,0.04826339]
[1740686238148,7.3411,136.38,136.37,0.04826339]
[1740686238851,29.3411,136.38,136.37,0.04826339]
[1740686239345,7.3411,136.38,136.37,0.04826339]
[1740686239546,7.3411,136.38,136.32,7.3441]
[1740686239547,7.343,136.35,136.32,7.3441]
[1740686239747,3.757,136.41,136.28,40.70556545]
[1740686239950,191.0,136.4,136.28,40.70556545]
[1740686240249,7.3438,136.33,136.3,7.3451]
[1740686240450,11.88,136.36,136.3,7.3451]
[1740686240650,0.05107483,136.33,136.3,7.3451]
[1740686241049,7.39487483,136.33,136.3,7.3451]
[1740686241249,7.39487483,136.33,136.28,40.70556545]
[1740686241250,7.39487483,136.33,136.29,7.3459]
[1740686241845,0.05107483,136.33,136.28,40.70556545]
[1740686242252,0.05107483,136.33,136.25,55.31361403]
[1740686242552,0.05107483,136.33,136.32,7.3443]
[1740686243052,7.483e-05,136.33,136.32,7.3443]
[1740686248648,7.483e-05,136.33,136.32,9.3751]
[1740686248853,7.483e-05,136.33,136.32,11.2869]
[1740686249756,7.483e-05,136.33,136.32,13.3413]
[1740686252654,7.483e-05,136.33,136.32,7.3443]
[1740686258959,7.483e-05,136.33,136.32,29.3443]
[1740686262868,7.483e-05,136.33,136.32,7.3443]
[1740686266069,7.483e-05,136.33,136.32,29.3443]
[1740686266764,3.8797,136.47,136.46,7.3368]
[1740686266958,3.8797,136.47,136.37,26.5628]
[1740686267169,3.8797,136.47,136.38,3.8005]
[1740686267667,3.8797,136.47,136.44,7.3373]
[1740686267869,0.05091579,136.44,136.41,0.05474268]
[1740686268068,3.8797,136.47,136.43,7.3384]
[1740686268271,0.04687878,136.44,136.41,0.05150248]
[1740686268867,0.04687878,136.44,136.33,3.976]
[1740686269063,0.04687878,136.44,136.35,10.17639136]
[1740686269364,7.3376,136.45,136.4,7.3396]
[1740686269665,1.9276,136.44,136.35,10.17639136]
[1740686269970,1.9276,136.44,136.41,7.3391]
[1740686270169,0.05346162,136.41,136.35,10.17639136]
[1740686270670,6.162e-05,136.41,136.4,7.34]
[1740686284073,6.162e-05,136.41,136.4,9.3144]
[1740686289983,6.162e-05,136.41,136.4,7.34]
[1740686291787,6.162e-05,136.41,136.39,0.05463709]
[1740686291982,6.162e-05,136.41,136.39,7.39483709]
[1740686292278,6.162e-05,136.41,136.36,40.70556545]
[1740686292482,7.3409,136.39,136.36,40.70556545]
[1740686292680,6.162e-05,136.41,136.36,40.70556545]
[1740686293288,6.162e-05,136.41,136.36,48.04766545]
[1740686293289,7.3408,136.39,136.36,48.04766545]
[1740686293588,7.3408,136.39,136.33,40.70556545]
[1740686293988,0.05197268,136.37,136.35,7.3425]
[1740686294990,0.05197268,136.37,136.36,7.3421]
[1740686297896,7.268e-05,136.37,136.36,7.3421]
[1740686311104,7.268e-05,136.37,136.36,9.2742]
[1740686314699,7.268e-05,136.37,136.36,7.3421]
[1740686318811,7.268e-05,136.37,136.35,0.05346613]
[1740686319511,7.34187268,136.37,136.35,0.05346613]
[1740686319910,7.268e-05,136.37,136.35,0.05346613]
[1740686320311,7.268e-05,136.37,136.36,7.3421]
[1740686320715,7.268e-05,136.37,136.35,0.05346613]
[1740686320915,7.268e-05,136.37,136.36,7.3421]
[1740686321413,7.268e-05,136.37,136.35,0.05346613]
[1740686322415,7.34167268,136.37,136.35,0.05346613]
[1740686322807,7.268e-05,136.37,136.35,0.05346613]
[1740686323011,7.268e-05,136.37,136.35,7.39606613]
[1740686325715,7.268e-05,136.37,136.34,7.343]
[1740686325716,11.38727268,136.37,136.34,7.343]
[1740686326225,7.3422,136.36,136.33,7.3435]
[1740686326716,7.3422,136.36,136.31,0.71959352]
[1740686327714,7.268e-05,136.37,136.31,0.71959352]
[1740686328219,7.268e-05,136.37,136.36,7.3421]
[1740686333621,7.268e-05,136.37,136.35,7.3424]
[1740686334417,7.268e-05,136.37,136.3,38.60419136]
[1740686334418,7.268e-05,136.37,136.3,23.91399136]
[1740686334618,7.268e-05,136.37,136.3,12.03399136]
[1740686335026,7.268e-05,136.37,136.34,7.3431]
[1740686336223,7.268e-05,136.37,136.35,7.3426]
[1740686336525,7.268e-05,136.37,136.3,1.8576]
[1740686337026,7.268e-05,136.37,136.36,7.3421]
[1740686338727,7.268e-05,136.37,136.35,7.3422]
[1740686338923,7.268e-05,136.37,136.3,1.8576]
[1740686340433,7.268e-05,136.37,136.36,7.3421]
[1740686349037,7.34167268,136.37,136.32,12.18399136]
[1740686349234,7.268e-05,136.37,136.32,10.17639136]
[1740686349433,7.268e-05,136.37,136.3,40.70556545]
[1740686349637,7.3424,136.36,136.32,7.3439]
[1740686350233,7.3427,136.35,136.33,7.3437]
[1740686350431,7.268e-05,136.37,136.33,7.3437]
[1740686350636,7.268e-05,136.37,136.3,40.70556545]
[1740686352135,7.268e-05,136.37,136.29,1.901]
[1740686352339,7.268e-05,136.37,136.29,3.9467]
[1740686353039,7.268e-05,136.37,136.35,7.3423]
[1740686353440,7.268e-05,136.37,136.29,3.9467]
[1740686353739,7.34197268,136.37,136.29,3.9467]
[1740686353941,7.268e-05,136.37,136.29,3.9467]
[1740686354434,7.3425,136.36,136.32,7.3439]
[1740686355137,7.268e-05,136.37,136.31,7.3445]
[1740686355440,7.268e-05,136.37,136.27,2.0523]
[1740686355633,7.3431,136.35,136.31,7.3444]
[1740686355834,0.05453099,136.33,136.31,7.3444]
[1740686356729,0.05453099,136.33,136.3,7.3451]
[1740686357132,0.05453099,136.33,136.27,2.0523]
[1740686358330,0.05453099,136.33,136.32,7.3443]
[1740686360230,3.099e-05,136.33,136.32,7.3443]
[1740686360435,11.88,136.41,136.31,0.05339741]
[1740686360641,11.88,136.41,136.27,2.0523]
[1740686360840,7.3408,136.39,136.28,14.6924]
[1740686361237,7.3408,136.39,136.36,7.3419]
[1740686361440,0.05642732,136.38,136.32,0.05274547]
[1740686361642,7.3411,136.38,136.29,14.6916]
[1740686361843,0.05608272,136.36,136.35,7.3424]
[1740686364347,0.05608272,136.36,136.34,0.05001711]
[1740686364537,0.05608272,136.36,136.34,7.39301711]
[1740686364742,0.05608272,136.36,136.34,0.05001711]
[1740686365038,7.3427,136.35,136.34,0.05001711]
[1740686365646,29.3427,136.35,136.34,0.05001711]
[1740686365847,7.345,136.31,136.27,40.70556545]
[1740686366147,3.9822,136.34,136.28,7.346]
[1740686366542,7.3446,136.32,136.29,7.3458]
[1740686366742,3.9822,136.34,136.29,7.3458]
[1740686366947,0.05128445,136.32,136.29,7.3458]
[1740686367148,0.05128445,136.32,136.27,40.70556545]
[1740686367447,0.05128445,136.32,136.3,7.345]
[1740686368348,0.05128445,136.32,136.31,7.3448]
[1740686369856,0.05128445,136.32,136.3,7.345]
[1740686370156,11.88,136.35,136.22,69.5042404]
[1740686370357,7.39273178,136.32,136.28,7.346]
[1740686371461,7.3449,136.31,136.28,7.346]
[1740686371760,0.04813178,136.32,136.27,7.3467]
[1740686371957,11.88,136.35,136.27,7.3467]
[1740686372259,7.3454,136.3,136.27,7.3467]
[1740686372461,0.05139078,136.31,136.22,69.5042404]
[1740686372759,11.88,136.35,136.22,69.5042404]
[1740686372959,0.05316457,136.28,136.22,69.5042404]
[1740686373162,0.05316457,136.28,136.27,7.347]
[1740686381469,0.05316457,136.28,136.26,7.3472]
[1740686382168,0.05316457,136.28,136.22,59.32784904]
[1740686382368,0.05316457,136.28,136.27,7.347]
[1740686383671,7.39956457,136.28,136.25,7.3476]
[1740686384975,0.05316457,136.28,136.26,7.3471]
[1740686385662,0.05316457,136.28,136.22,5.8542]
[1740686386167,0.05316457,136.28,136.26,7.3472]
[1740686388063,0.05316457,136.28,136.17,55.40956545]
[1740686388266,11.88,136.28,136.17,42.64126545]
[1740686388470,0.05075311,136.24,136.18,10.17639136]
[1740686389374,0.05075311,136.24,136.22,7.3495]
[1740686389576,0.05075311,136.24,136.18,10.17639136]
[1740686390669,7.39935311,136.24,136.21,7.3499]
[1740686391174,0.05075311,136.24,136.21,7.3499]
[1740686391372,0.05075311,136.24,136.17,1.9357]
[1740686391877,0.05075311,136.24,136.22,7.3496]
[1740686392372,7.39935311,136.24,136.22,7.3496]
[1740686392575,0.05075311,136.24,136.22,7.3496]
[1740686394276,7.39935311,136.24,136.21,7.3499]
[1740686395176,7.39935311,136.24,136.22,7.3496]
[1740686395376,0.05075311,136.24,136.17,1.9357]
[1740686395575,3.9627,136.33,136.19,0.05577853]
[1740686395775,3.9627,136.33,136.28,7.3463]
[1740686395976,7.3453,136.31,136.2,14.7011]
[1740686396173,11.88,136.34,136.21,1.8929]
[1740686396375,11.88,136.34,136.3,7.3451]
[1740686396574,11.88,136.34,136.22,1.857]
[1740686396778,0.05351652,136.33,136.31,0.05056795]
[1740686396975,7.3441,136.33,136.3,7.3451]
[1740686397176,7.39273685,136.33,136.22,1.857]
[1740686397479,11.88,136.34,136.3,0.05445978]
[1740686397674,0.04874907,136.29,136.26,0.0535258]
[1740686397878,11.88,136.34,136.22,1.857]
[1740686398177,0.05490818,136.29,136.24,0.05164145]
[1740686398374,7.3438,136.33,136.22,1.857]
[1740686398574,7.3438,136.33,136.3,7.3451]
[1740686399279,7.3446,136.32,136.22,1.857]
[1740686399476,7.3446,136.32,136.3,0.05118568]
[1740686399681,7.3446,136.32,136.22,1.857]
[1740686399882,7.39369383,136.32,136.3,0.05331366]
[1740686400078,7.344,136.33,136.22,1.857]
[1740686400275,0.0475787,136.32,136.3,0.04965056]
[1740686400481,1.9736,136.36,136.22,1.857]
[1740686400775,0.05592926,136.32,136.3,0.05281952]
[1740686401171,7.3448,136.31,136.3,0.05281952]
[1740686401573,0.05592926,136.32,136.3,0.05281952]
[1740686401972,7.40052926,136.32,136.3,0.05281952]
[1740686402180,0.05592926,136.32,136.3,0.05281952]
[1740686402379,7.40052926,136.32,136.3,0.05281952]
[1740686402884,0.05592926,136.32,136.3,0.05281952]
[1740686403379,0.05592926,136.32,136.31,7.3448]
[1740686404081,7.3408,136.39,136.3,0.05281952]
[1740686404387,15.6851,136.45,136.26,1.9479]
[1740686404591,17.5713,136.45,136.26,194.9479]
[1740686404790,79.51588468,136.44,136.28,14.6928]
[1740686405085,79.51588468,136.44,136.41,7.3394]
[1740686405086,86.85388468,136.44,136.41,7.3394]
[1740686405280,79.51588468,136.44,136.35,0.05433047]
[1740686405483,79.5685793,136.44,136.33,1.9479]
[1740686405683,79.51588468,136.44,136.41,7.3392]
[1740686406079,79.56824821,136.44,136.41,7.3392]
[1740686406275,79.56824821,136.44,136.41,7.38845038]
[1740686406584,79.56824821,136.44,136.41,0.04925038]
[1740686406985,79.56824821,136.44,136.41,7.38855038]
[1740686407680,0.05236353,136.44,136.41,7.38855038]
[1740686407978,0.05236353,136.44,136.41,0.04925038]
[1740686409487,7.3389,136.42,136.41,0.04925038]
[1740686409885,22.0,136.42,136.34,2.0007]
[1740686410092,7.3412,136.38,136.34,2.0007]
[1740686410487,6.0247,136.43,136.33,3.8432]
[1740686410687,7.3419,136.37,136.33,3.8432]
[1740686410886,6.0247,136.43,136.3,42.70626545]
[1740686411089,0.04712477,136.36,136.34,0.05167636]
[1740686411390,13.68301026,136.43,136.3,42.70626545]
[1740686411689,0.04841105,136.36,136.34,0.05203386]
[1740686411990,11.86,136.36,136.3,40.70556545]
[1740686412391,7.3442,136.33,136.3,40.70556545]
[1740686412792,11.86,136.36,136.3,40.70556545]
[1740686413091,4.0583,136.35,136.3,40.70556545]
[1740686413286,0.04659001,136.34,136.32,0.04874315]
[1740686413491,7.3448,136.31,136.3,40.70556545]
[1740686413893,22.0,136.31,136.21,40.70556545]
[1740686414092,7.3464,136.29,136.22,11.3245]
[1740686414386,191.0,136.34,136.22,11.3245]
[1740686414590,0.04948675,136.27,136.24,0.03031218]
[1740686414791,7.3464,136.29,136.22,11.3245]
[1740686415093,0.05124719,136.27,136.24,0.03031218]
[1740686415394,7.3466,136.28,136.22,7.3495]
[1740686415686,0.0537235,136.27,136.24,0.03031218]
[1740686415992,11.86,136.29,136.21,42.60416545]
[1740686416289,0.05482592,136.27,136.24,0.03031218]
[1740686416686,0.05482592,136.27,136.14,3.7728]
[1740686416883,0.05482592,136.27,136.14,5.7086]
[1740686417088,3.8754,136.28,136.17,7.3522]
[1740686417289,202.54270928,136.28,136.14,5.7086]
[1740686417491,202.54270928,136.28,136.16,7.3528]
[1740686417689,191.0,136.27,136.14,5.7086]
[1740686417890,11.54270928,136.28,136.14,5.7086]
[1740686417891,0.04723541,136.23,136.14,5.7086]
[1740686418093,7.3513,136.2,136.14,13.0624]
[1740686418492,0.0537777,136.18,136.14,13.0624]
[1740686418694,0.0537777,136.18,136.14,1.9358]
[1740686418893,0.0537777,136.18,136.13,7.3543]
[1740686419692,7.4056777,136.18,136.13,7.3543]
[1740686419995,0.0537777,136.18,136.12,10.17639136]
[1740686420794,0.0537777,136.18,136.13,7.3541]
[1740686422293,7.3524,136.17,136.12,7.3549]
[1740686423499,7.3531,136.16,136.11,7.3554]
[1740686423686,0.0537777,136.18,136.1,2.0548]
[1740686423888,1.9068,136.19,136.06,3.8916]
[1740686424091,7.3543,136.14,136.09,7.3564]
[1740686424794,7.355,136.13,136.08,7.357]
[1740686425197,11.88,136.15,136.06,5.9205]
[1740686425398,0.05106367,136.12,136.06,5.9205]
[1740686425898,0.05106367,136.12,136.09,7.3564]
[1740686426295,13.8592,136.2,136.06,5.9205]
[1740686426597,7.3526,136.17,136.06,5.9205]
[1740686426790,15.8549,136.2,136.06,5.9205]
[1740686426990,7.3522,136.18,136.13,7.3544]
[1740686427594,7.40879511,136.17,136.14,0.05106367]
[1740686427795,0.05639511,136.17,136.14,0.05106367]
[1740686428601,0.05639511,136.17,136.06,5.9205]
[1740686428801,0.05639511,136.17,136.09,7.3565]
[1740686429103,7.3544,136.14,136.09,7.3565]
[1740686429296,37.8949,136.2,136.08,7.3572]
[1740686429500,37.8949,136.2,136.06,5.9205]
[1740686429703,59.9249,136.2,136.06,5.9205]
[1740686429900,0.0471282,136.14,136.08,7.357]
[1740686430602,7.3548,136.13,136.06,5.9205]
[1740686430998,0.04959605,136.11,136.01,14.7214]
[1740686431194,0.04959605,136.11,136.02,5.8994]
[1740686431400,1.32881724,136.19,136.02,5.8994]
[1740686431401,0.04905881,136.07,136.02,5.8994]
[1740686431601,7.3532,136.16,136.12,7.355]
[1740686431905,11.88,136.18,136.03,14.7193]
[1740686432205,7.3526,136.17,136.13,7.3541]
[1740686432405,11.88,136.18,136.04,26.5988]
[1740686432813,0.05547547,136.12,136.11,7.3553]
[1740686433209,7.3531,136.16,136.12,7.3548]
[1740686433405,0.05327154,136.13,136.12,7.3548]
[1740686433610,11.88,136.18,136.04,26.5988]
[1740686433810,11.88,136.18,136.11,0.04905881]